bitfinex-derivatives/quotes_BTCF0:USTF0_20250313
["timestamp","ask_amount","ask_price","bid_price","bid_amount"]
[1741826688233,0.009,83831.0,83830.0,0.49642556]
[1741826688440,0.0001789,83839.0,83830.0,0.39711506]
[1741826688627,0.0001789,83839.0,83838.0,0.1192991]
[1741826688830,0.0001789,83839.0,83838.0,0.13129692]
[1741826689038,0.0001789,83839.0,83838.0,0.01199782]
[1741826689247,0.0001789,83839.0,83838.0,0.13129692]
[1741826689629,0.0051789,83839.0,83838.0,0.13129692]
[1741826689853,0.1892766,83839.0,83838.0,0.13238744]
[1741826690043,0.1892766,83839.0,83838.0,0.13338834]
[1741826690246,0.1892766,83839.0,83838.0,0.19782834]
[1741826690445,0.1842766,83839.0,83838.0,0.31712744]
[1741826690649,0.1912766,83839.0,83838.0,0.31812744]
[1741826691543,0.1912766,83839.0,83838.0,0.19882834]
[1741826695936,0.20315856,83839.0,83838.0,0.19891865]
[1741826696243,0.20315856,83839.0,83838.0,0.13721865]
[1741826696444,0.20315856,83839.0,83838.0,0.01417865]
[1741826698441,0.20315856,83839.0,83838.0,0.002]
[1741826699653,0.1912766,83839.0,83838.0,0.1212991]
[1741826700355,0.1912766,83839.0,83838.0,0.13335191]
[1741826700743,0.1912766,83839.0,83838.0,0.18985191]
[1741826702047,0.2478766,83839.0,83838.0,0.18985191]
[1741826702253,0.2478766,83839.0,83838.0,0.07055281]
[1741826702952,0.2478766,83839.0,83838.0,0.07051608]
[1741826703148,0.2478766,83839.0,83838.0,0.12901608]
[1741826703543,0.0697789,83839.0,83838.0,0.24831518]
[1741826703951,0.1890766,83839.0,83838.0,0.24831518]
[1741826704839,0.0131789,83839.0,83838.0,0.24831518]
[1741826705342,0.1324766,83839.0,83838.0,0.24831518]
[1741826706855,0.1324766,83839.0,83838.0,0.24827675]
[1741826707154,0.1324766,83839.0,83838.0,0.25717666]
[1741826707556,0.0131789,83839.0,83838.0,0.25717666]
[1741826707943,0.0131789,83839.0,83838.0,0.24827675]
[1741826708555,0.0131789,83839.0,83838.0,0.2362991]
[1741826708755,0.1324766,83839.0,83838.0,0.2362991]
[1741826709145,0.1324766,83839.0,83838.0,0.117]
[1741826709345,0.1324766,83839.0,83838.0,0.0605]
[1741826709543,0.1324766,83839.0,83838.0,0.002]
[1741826709755,0.1193033,83835.0,83834.0,0.2134177]
[1741826711048,0.1263033,83835.0,83834.0,0.2144177]
[1741826711348,0.1263033,83835.0,83824.0,0.2134177]
[1741826711349,0.02022434,83835.0,83824.0,0.2134177]
[1741826711548,0.1193176,83825.0,83824.0,0.2134177]
[1741826712461,0.2385176,83825.0,83824.0,0.2134177]
[1741826712853,0.25023847,83825.0,83824.0,0.2134177]
[1741826713653,0.25223847,83825.0,83824.0,0.2134177]
[1741826714056,0.1193204,83823.0,83820.0,0.0596]
[1741826715259,0.1193204,83823.0,83813.0,0.12296]
[1741826715561,0.1193204,83823.0,83814.0,0.114]
[1741826715752,0.1193318,83815.0,83814.0,0.114]
[1741826716562,0.2364318,83815.0,83814.0,0.114]
[1741826716863,0.1171,83815.0,83808.0,0.18992191]
[1741826717056,0.0586692,83811.0,83810.0,0.1186]
[1741826717652,0.0586692,83811.0,83810.0,0.0581]
[1741826717851,0.1193432,83807.0,83803.0,0.0605]
[1741826718058,0.119341,83809.0,83808.0,0.1193404]
[1741826718261,0.113341,83809.0,83808.0,0.1193404]
[1741826718467,0.1193432,83807.0,83806.0,0.00014258]
[1741826718863,0.1163432,83807.0,83806.0,0.11948718]
[1741826719065,0.1774432,83807.0,83806.0,0.11948718]
[1741826719654,0.1734432,83807.0,83806.0,0.11948718]
[1741826720560,0.1734432,83807.0,83806.0,0.12448718]
[1741826720867,0.1704432,83807.0,83806.0,0.00514258]
[1741826721256,0.07304675,83807.0,83799.0,0.2134177]
[1741826721457,0.1153517,83801.0,83799.0,0.2134177]
[1741826722058,0.1153517,83801.0,83792.0,0.0596821]
[1741826722259,0.2320517,83801.0,83792.0,0.0596821]
[1741826722563,0.2320517,83801.0,83794.0,0.1193613]
[1741826722954,0.2300517,83801.0,83794.0,0.1193613]
[1741826723165,0.2522517,83801.0,83800.0,0.2193532]
[1741826723366,0.2522517,83801.0,83800.0,0.1]
[1741826723858,0.2522517,83801.0,83800.0,0.104]
[1741826725970,0.1193688,83789.0,83788.0,0.2134177]
[1741826726461,0.1193688,83789.0,83766.0,0.0597004]
[1741826726462,0.15,83789.0,83769.0,0.0581]
[1741826726668,0.1193959,83770.0,83769.0,0.0581]
[1741826726852,0.1193973,83769.0,83768.0,0.21320155]
[1741826727055,0.2407973,83769.0,83768.0,0.21320155]
[1741826727762,0.2387973,83769.0,83768.0,0.21320155]
[1741826728476,0.2387973,83769.0,83768.0,0.21520155]
[1741826729356,0.00017902,83777.0,83771.0,0.0596963]
[1741826729562,0.1193973,83769.0,83768.0,0.21520155]
[1741826729865,0.1193973,83769.0,83768.0,0.33460035]
[1741826730460,0.1193973,83769.0,83768.0,0.33260035]
[1741826731058,0.1193973,83769.0,83768.0,0.1193988]
[1741826731059,0.1123973,83769.0,83768.0,0.1193988]
[1741826731969,0.1153973,83769.0,83768.0,0.1193988]
[1741826732965,0.003,83769.0,83768.0,0.1193988]
[1741826733264,0.007,83769.0,83768.0,0.1193988]
[1741826733469,0.004,83769.0,83768.0,0.4496988]
[1741826733666,0.008,83769.0,83768.0,0.1796988]
[1741826733866,0.1233973,83769.0,83768.0,0.1796988]
[1741826734062,0.1263973,83769.0,83768.0,0.1796988]
[1741826734259,0.1263973,83769.0,83768.0,0.0603]
[1741826734460,0.1263973,83769.0,83768.0,0.1796988]
[1741826734673,0.1233973,83769.0,83768.0,0.1796988]
[1741826734978,0.1213973,83769.0,83768.0,0.1796988]
[1741826735476,0.1233973,83769.0,83768.0,0.1796988]
[1741826735862,0.1233973,83769.0,83768.0,0.0603]
[1741826736062,0.2415973,83769.0,83768.0,0.0603]
[1741826736265,0.2415973,83769.0,83768.0,0.2424988]
[1741826737175,0.1820973,83769.0,83768.0,0.2424988]
[1741826737673,0.1253973,83769.0,83768.0,0.2424988]
[1741826737867,0.1223973,83769.0,83768.0,0.2424988]
[1741826738068,0.1253973,83769.0,83768.0,0.2424988]
[1741826738965,0.006,83769.0,83768.0,0.2424988]
[1741826739166,0.1253973,83769.0,83768.0,0.2424988]
[1741826739861,0.1253973,83769.0,83768.0,0.1231]
[1741826740478,0.1870973,83769.0,83768.0,0.1231]
[1741826740673,0.2495973,83769.0,83768.0,0.1231]
[1741826741066,0.2495973,83769.0,83768.0,0.2424988]
[1741826741667,0.006,83769.0,83768.0,0.2424988]
[1741826741869,0.1253973,83769.0,83768.0,0.2424988]
[1741826742577,0.12529924,83769.0,83768.0,0.2424988]
[1741826743081,0.12529924,83769.0,83768.0,0.1231]
[1741826743773,0.12529924,83769.0,83768.0,0.2424988]
[1741826743971,0.18359924,83769.0,83768.0,0.2424988]
[1741826744879,0.1273973,83769.0,83768.0,0.2424988]
[1741826746273,0.1293973,83769.0,83768.0,0.2424988]
[1741826746683,0.1293973,83769.0,83768.0,0.1231]
[1741826746872,0.1293973,83769.0,83768.0,0.2424988]
[1741826747078,0.1283973,83769.0,83768.0,0.2424988]
[1741826747677,0.1243973,83769.0,83768.0,0.2424988]
[1741826747877,0.1273973,83769.0,83768.0,0.2424988]
[1741826748374,0.1273973,83769.0,83768.0,0.1231]
[1741826748767,0.1273973,83769.0,83768.0,0.0628]
[1741826749382,0.008,83769.0,83730.0,0.01792]
[1741826749684,0.1194273,83748.0,83747.0,0.1189]
[1741826750179,0.1201,83749.0,83743.0,0.0626]
[1741826750380,0.1194316,83745.0,83742.0,0.28412806]
[1741826750687,0.1194344,83743.0,83742.0,0.28412806]
[1741826750886,0.13179947,83743.0,83742.0,0.28412806]
[1741826751368,0.25509947,83743.0,83742.0,0.28412806]
[1741826751685,0.25418155,83743.0,83742.0,0.28412806]
[1741826752182,0.2407344,83743.0,83742.0,0.28412806]
[1741826753082,0.25419749,83743.0,83742.0,0.28412806]
[1741826753276,0.2407344,83743.0,83742.0,0.28412806]
[1741826753586,0.2541984,83743.0,83742.0,0.28412806]
[1741826753792,0.2471984,83743.0,83742.0,0.28412806]
[1741826754290,0.2521984,83743.0,83742.0,0.28412806]
[1741826754987,0.1194401,83739.0,83738.0,0.0626]
[1741826756988,0.1234401,83739.0,83738.0,0.0626]
[1741826757385,0.1274401,83739.0,83738.0,0.0626]
[1741826760286,0.1274401,83739.0,83738.0,0.1820415]
[1741826760590,0.1274401,83739.0,83738.0,0.0626]
[1741826763789,0.1274401,83739.0,83738.0,0.1820415]
[1741826763997,0.1274401,83739.0,83738.0,0.0626]
[1741826767385,0.1274401,83739.0,83720.0,0.059733]
[1741826767386,0.008,83739.0,83715.0,0.0597367]
[1741826767581,0.1194587,83726.0,83725.0,0.0636]
[1741826767798,0.1194715,83717.0,83716.0,0.0596]
[1741826768184,0.1194858,83707.0,83706.0,0.0607]
[1741826768381,0.1194858,83707.0,83706.0,0.1801872]
[1741826768581,0.1194858,83707.0,83706.0,0.0607]
[1741826769591,0.1801858,83707.0,83706.0,0.1194]
[1741826769799,0.19205513,83707.0,83706.0,0.1194]
[1741826770595,0.1811858,83707.0,83706.0,0.1194]
[1741826770795,0.1204858,83707.0,83706.0,0.2388872]
[1741826771099,0.1214858,83707.0,83706.0,0.2388872]
[1741826771594,0.002,83707.0,83706.0,0.2388872]
[1741826771799,0.1214858,83707.0,83706.0,0.2388872]
[1741826771996,0.1214858,83707.0,83706.0,0.1194]
[1741826772998,0.1204858,83707.0,83706.0,0.1194]
[1741826773193,0.2368858,83707.0,83706.0,0.1194]
[1741826773396,0.2368858,83707.0,83706.0,0.2388872]
[1741826773891,0.2368858,83707.0,83706.0,0.1194]
[1741826774493,0.1788858,83707.0,83706.0,0.2388872]
[1741826774695,0.1778858,83707.0,83706.0,0.1194]
[1741826775001,0.1778858,83707.0,83706.0,0.1793]
[1741826776691,0.1778858,83707.0,83706.0,0.2987872]
[1741826777296,0.1194858,83707.0,83706.0,0.1793]
[1741826777706,0.10696463,83720.0,83706.0,0.1793]
[1741826778007,0.1194771,83714.0,83713.0,0.1194758]
[1741826778300,0.11965353,83715.0,83714.0,0.1194758]
[1741826778496,0.11965353,83715.0,83714.0,0.2385758]
[1741826780402,0.00017913,83715.0,83714.0,0.3616558]
[1741826780603,0.00317913,83715.0,83714.0,0.3616558]
[1741826781004,0.00317913,83715.0,83714.0,0.6316558]
[1741826781208,0.14262949,83723.0,83716.0,0.059736]
[1741826781400,0.14262949,83723.0,83722.0,0.1194644]
[1741826781709,0.14262949,83723.0,83722.0,0.3494644]
[1741826782307,0.10698429,83728.0,83727.0,0.1194572]
[1741826782501,0.10698429,83728.0,83727.0,0.6111372]
[1741826783709,0.10998429,83728.0,83727.0,0.6111372]
[1741826783892,0.21401669,83744.0,83727.0,1.13001627]
[1741826784092,0.21401669,83744.0,83743.0,0.1194344]
[1741826784292,0.21401669,83744.0,83743.0,0.5125144]
[1741826785404,0.12461669,83744.0,83743.0,0.5125144]
[1741826785605,0.00060001,83762.0,83744.0,0.0597162]
[1741826785812,0.0597019,83765.0,83764.0,0.1194016]
[1741826785993,0.1203003,83767.0,83764.0,0.2424416]
[1741826786194,0.23801399,83769.0,83768.0,0.1193988]
[1741826787424,0.00017913,83777.0,83776.0,0.1193874]
[1741826787610,0.00017913,83777.0,83776.0,0.2424274]
[1741826788112,0.11956503,83777.0,83776.0,0.2424274]
[1741826788608,0.11956503,83777.0,83776.0,0.3028274]
[1741826788812,0.12556503,83777.0,83776.0,0.3028274]
[1741826789294,0.00617913,83777.0,83776.0,0.3028274]
[1741826789701,0.12556503,83777.0,83776.0,0.3028274]
[1741826790313,0.13156503,83777.0,83776.0,0.18444]
[1741826790610,0.13156503,83777.0,83776.0,0.3038274]
[1741826791997,0.01217913,83777.0,83776.0,0.3038274]
[1741826792714,0.01217913,83777.0,83776.0,0.5138274]
[1741826792904,0.1794768,83786.0,83785.0,0.1193745]
[1741826793101,0.1794768,83786.0,83785.0,0.2423745]
[1741826793805,0.2391635,83786.0,83785.0,0.1855]
[1741826794003,0.2461635,83786.0,83785.0,0.001]
[1741826794198,0.2461635,83786.0,83785.0,0.124]
[1741826794512,0.2531635,83786.0,83785.0,0.124]
[1741826794809,0.2531635,83786.0,83785.0,0.0635]
[1741826796309,0.4645,83786.0,83751.0,0.0008]
[1741826796511,0.4645,83786.0,83700.0,0.1]
[1741826796512,0.1194373,83741.0,83731.0,0.1194504]
[1741826796814,0.2433573,83741.0,83728.0,0.42823541]
[1741826797011,0.0576,83758.0,83740.0,0.34384736]
[1741826797203,0.1194358,83742.0,83741.0,0.00017913]
[1741826797405,0.1194358,83742.0,83741.0,0.05957913]
[1741826797613,0.1144358,83742.0,83741.0,0.0594]
[1741826798212,0.1104358,83742.0,83741.0,0.0594]
[1741826798415,0.1104358,83742.0,83741.0,0.0604]
[1741826798911,0.1164358,83742.0,83741.0,0.002]
[1741826799314,0.1164358,83742.0,83741.0,0.00217913]
[1741826799519,0.006,83742.0,83741.0,0.24801643]
[1741826799718,0.006,83742.0,83741.0,0.12857913]
[1741826799719,0.1254358,83742.0,83741.0,0.12857913]
[1741826799904,0.1877358,83742.0,83741.0,0.002]
[1741826800215,0.1877358,83742.0,83741.0,0.001]
[1741826800417,0.119443,83737.0,83736.0,0.124]
[1741826800823,0.119443,83737.0,83736.0,0.24362353]
[1741826801007,0.119443,83737.0,83736.0,0.12417913]
[1741826801313,0.1194472,83734.0,83733.0,0.00017913]
[1741826802208,0.1783472,83734.0,83733.0,0.00017913]
[1741826802421,0.1900181,83734.0,83733.0,0.00017913]
[1741826802609,0.1783472,83734.0,83733.0,0.00017913]
[1741826803315,0.19034018,83734.0,83733.0,0.00017913]
[1741826804123,0.19434018,83734.0,83733.0,0.00017913]
[1741826804415,0.1823472,83734.0,83733.0,0.00017913]
[1741826804617,0.1863472,83734.0,83733.0,0.00017913]
[1741826804812,0.1863472,83734.0,83733.0,0.11980696]
[1741826805319,0.008,83734.0,83733.0,0.11980696]
[1741826805520,0.14757525,83750.0,83743.0,0.0597165]
[1741826805521,0.0597175,83744.0,83743.0,0.0597165]
[1741826805715,0.1791562,83744.0,83743.0,0.00017913]
[1741826806421,0.1791562,83744.0,83736.0,0.12384]
[1741826806422,0.0597175,83744.0,83736.0,0.12384]
[1741826806622,0.119443,83737.0,83736.0,0.12384]
[1741826806924,0.1194472,83734.0,83733.0,0.18242783]
[1741826807117,0.1214472,83734.0,83733.0,0.06297913]
[1741826807318,0.1234472,83734.0,83733.0,0.06315826]
[1741826807519,0.1234472,83734.0,83733.0,0.18260696]
[1741826807827,0.1789472,83734.0,83733.0,0.00035826]
[1741826808209,0.1799472,83734.0,83733.0,0.00035826]
[1741826808415,0.1839472,83734.0,83733.0,0.00035826]
[1741826808817,0.1839472,83734.0,83733.0,0.00017913]
[1741826809019,0.2427472,83734.0,83733.0,0.00017913]
[1741826810113,0.2397472,83734.0,83733.0,0.00017913]
[1741826810315,0.2437472,83734.0,83733.0,0.00017913]
[1741826811319,0.2437472,83734.0,83733.0,0.00035826]
[1741826811320,0.1849472,83734.0,83733.0,0.00035826]
[1741826812524,0.1839472,83734.0,83733.0,0.00035826]
[1741826813013,0.1264472,83734.0,83733.0,0.11980696]
[1741826813219,0.1264472,83734.0,83733.0,0.17980696]
[1741826814128,0.1194472,83734.0,83733.0,0.06035826]
[1741826814335,0.1264472,83734.0,83733.0,0.17980696]
[1741826814924,0.1204472,83734.0,83733.0,0.17980696]
[1741826815122,0.1234472,83734.0,83733.0,0.00035826]
[1741826815323,0.1861472,83734.0,83733.0,0.00035826]
[1741826816023,0.1841472,83734.0,83733.0,0.00017913]
[1741826816325,0.1871472,83734.0,83733.0,0.00017913]
[1741826817228,0.1881472,83734.0,83733.0,0.00017913]
[1741826817626,0.1851472,83734.0,83733.0,0.00017913]
[1741826817828,0.1901472,83734.0,83733.0,0.00017913]
[1741826819734,0.1274472,83734.0,83733.0,0.11980696]
[1741826821232,0.1254472,83734.0,83733.0,0.36024696]
[1741826821622,0.1254472,83734.0,83733.0,0.11715826]
[1741826821932,0.1224472,83734.0,83733.0,0.06175826]
[1741826822134,0.1194472,83734.0,83733.0,0.06175826]
[1741826822320,0.2387472,83734.0,83733.0,0.06175826]
[1741826822520,0.2387472,83734.0,83733.0,0.05875826]
[1741826822927,0.2387472,83734.0,83733.0,0.00017913]
[1741826823933,0.2407472,83734.0,83733.0,0.00017913]
[1741826824339,0.2437472,83734.0,83733.0,0.00017913]
[1741826824539,0.2447472,83734.0,83733.0,0.00017913]
[1741826824733,0.179212,83718.0,83717.0,0.1194635]
[1741826825235,0.179212,83718.0,83717.0,0.11964263]
[1741826825945,0.179212,83718.0,83717.0,0.12364263]
[1741826827133,0.179212,83718.0,83717.0,0.12664263]
[1741826827732,0.179212,83718.0,83717.0,0.12564263]
[1741826828732,0.179212,83718.0,83717.0,0.00417913]
[1741826829643,0.179212,83718.0,83717.0,0.004]
[1741826830141,0.240912,83718.0,83717.0,0.004]
[1741826831442,0.1194815,83710.0,83709.0,0.00017913]
[1741826832341,0.2422815,83710.0,83709.0,0.00017913]
[1741826832845,0.2566832,83710.0,83709.0,0.00417913]
[1741826833235,0.2432815,83710.0,83709.0,0.00417913]
[1741826834144,0.24969421,83710.0,83709.0,0.00417913]
[1741826834531,0.24969421,83710.0,83709.0,0.00817913]
[1741826834740,0.24869421,83710.0,83709.0,0.00417913]
[1741826834939,0.25469421,83710.0,83709.0,0.00417913]
[1741826835145,0.26069421,83710.0,83709.0,0.00017913]
[1741826835346,0.1194943,83701.0,83700.0,0.1]
[1741826836842,0.2383943,83701.0,83700.0,0.1]
[1741826837148,0.00017913,83709.0,83704.0,0.0597444]
[1741826837341,0.00017913,83709.0,83708.0,0.11966343]
[1741826837534,0.00017913,83709.0,83708.0,0.13135059]
[1741826838548,0.17881307,83717.0,83716.0,0.1194729]
[1741826838844,0.29828457,83717.0,83716.0,0.12493913]
[1741826839638,0.17881307,83717.0,83716.0,0.24441203]
[1741826840037,0.17881307,83717.0,83716.0,0.2442329]
[1741826840247,0.29828457,83717.0,83716.0,0.30151203]
[1741826840448,0.29828457,83717.0,83716.0,0.18203913]
[1741826840642,0.1194715,83717.0,83716.0,0.0571]
[1741826840843,0.1194815,83710.0,83709.0,0.0571]
[1741826841250,0.1194901,83704.0,83703.0,0.12488]
[1741826841444,0.1194901,83704.0,83703.0,0.0571]
[1741826841640,0.1194901,83704.0,83703.0,0.17677063]
[1741826842839,0.1214901,83704.0,83703.0,0.17677063]
[1741826844145,0.1244901,83704.0,83703.0,0.17677063]
[1741826844737,0.1829901,83704.0,83703.0,0.05727913]
[1741826845248,0.1809901,83704.0,83703.0,0.05727913]
[1741826845548,0.1194915,83703.0,83702.0,0.0579]
[1741826845746,0.1801915,83703.0,83702.0,0.0579]
[1741826848554,0.1841915,83703.0,83702.0,0.0579]
[1741826849452,0.1821915,83703.0,83702.0,0.0579]
[1741826849750,0.1861915,83703.0,83702.0,0.0579]
[1741826850841,0.1194943,83701.0,83700.0,0.1]
[1741826851448,0.1804943,83701.0,83700.0,0.1]
[1741826852241,0.1195058,83693.0,83685.0,0.00072388]
[1741826852444,0.11952,83683.0,83682.0,0.21418556]
[1741826853456,0.23482,83683.0,83682.0,0.21418556]
[1741826854550,0.1195229,83681.0,83680.0,0.0603]
[1741826854752,0.1155229,83681.0,83680.0,0.0603]
[1741826855146,0.1155229,83681.0,83680.0,0.06047913]
[1741826855346,0.12123947,83681.0,83680.0,0.06047913]
[1741826855941,0.12123947,83681.0,83680.0,0.06447913]
[1741826856146,0.12223947,83681.0,83680.0,0.06447913]
[1741826856846,0.11523947,83681.0,83680.0,0.06447913]
[1741826857157,0.001,83681.0,83680.0,0.18400343]
[1741826857354,0.0597509,83696.0,83690.0,0.11951]
[1741826857557,0.0597,83695.0,83690.0,0.11968913]
[1741826857755,0.11968785,83691.0,83690.0,0.00017913]
[1741826858154,0.00017925,83691.0,83690.0,0.11968913]
[1741826858357,0.00017925,83691.0,83690.0,0.24408913]
[1741826858957,0.00117925,83691.0,83690.0,0.24408913]
[1741826859851,0.12068785,83691.0,83690.0,0.24408913]
[1741826860050,0.00117925,83691.0,83690.0,0.24408913]
[1741826860249,0.00117925,83691.0,83690.0,0.51388913]
[1741826860446,0.00117925,83691.0,83690.0,0.48388913]
[1741826861365,0.00217925,83691.0,83690.0,0.48388913]
[1741826861754,0.00217925,83691.0,83690.0,0.50388913]
[1741826862155,0.00217925,83691.0,83690.0,0.48388913]
[1741826862563,0.00217925,83691.0,83690.0,0.49388913]
[1741826863453,0.1194954,83701.0,83700.0,0.1194958]
[1741826863664,0.1194954,83701.0,83700.0,0.24355493]
[1741826864062,0.059746,83703.0,83702.0,0.1194929]
[1741826864272,0.1194851,83708.0,83707.0,0.1194829]
[1741826864568,0.1194851,83708.0,83707.0,0.11966203]
[1741826864755,0.1194851,83708.0,83707.0,0.1194829]
[1741826864956,0.00017925,83711.0,83707.0,0.35966203]
[1741826865156,0.00017925,83711.0,83710.0,0.11966063]
[1741826865353,0.00017925,83711.0,83710.0,0.53358063]
[1741826865660,0.17881307,83718.0,83717.0,0.1194715]
[1741826865853,0.17881307,83718.0,83717.0,0.11965063]
[1741826866260,0.17881307,83718.0,83717.0,0.1892219]
[1741826866457,0.17881307,83718.0,83717.0,0.5199219]
[1741826867055,0.1194668,83721.0,83720.0,0.1194658]
[1741826867255,0.1194668,83721.0,83720.0,0.24348493]
[1741826867963,0.1781668,83721.0,83720.0,0.24348493]
[1741826868562,0.007,83721.0,83720.0,0.24348493]
[1741826868762,0.1264658,83721.0,83720.0,0.24348493]
[1741826868962,0.1334658,83721.0,83720.0,0.24348493]
[1741826870068,0.1334658,83721.0,83720.0,0.2433058]
[1741826870271,0.1334658,83721.0,83720.0,0.24348493]
[1741826872168,0.1194715,83717.0,83693.0,0.0597526]
[1741826872358,0.1194772,83713.0,83704.0,0.33762556]
[1741826872768,0.1194772,83713.0,83706.0,0.0597433]
[1741826872968,0.1194772,83713.0,83704.0,0.33762556]
[1741826873167,0.1194772,83713.0,83709.0,0.1194824]
[1741826873368,0.1194772,83713.0,83707.0,0.1194852]
[1741826873563,0.1254772,83713.0,83704.0,0.33762556]
[1741826873768,0.1254772,83713.0,83711.0,0.1194789]
[1741826874178,0.1254772,83713.0,83708.0,0.0597418]
[1741826874475,0.1254772,83713.0,83700.0,0.14739612]
[1741826874476,0.1194972,83699.0,83688.0,0.0597562]
[1741826874681,0.0597438,83707.0,83706.0,0.0597417]
[1741826875880,0.0588,83711.0,83698.0,0.18497925]
[1741826876082,0.1194972,83699.0,83698.0,0.66396415]
[1741826876266,0.1194972,83699.0,83698.0,0.42388415]
[1741826876473,0.1194972,83699.0,83698.0,0.30457038]
[1741826877369,0.1204972,83699.0,83698.0,0.30457038]
[1741826877576,0.1204972,83699.0,83698.0,0.12407838]
[1741826878771,0.1214972,83699.0,83698.0,0.12407838]
[1741826878971,0.1214972,83699.0,83698.0,0.00017925]
[1741826879171,0.1244972,83699.0,83698.0,0.00017925]
[1741826880677,0.13395887,83699.0,83698.0,0.00017925]
[1741826881588,0.1195186,83684.0,83683.0,0.12368]
[1741826881772,0.1195186,83684.0,83681.0,0.00179246]
[1741826881773,0.1195215,83682.0,83681.0,0.00179246]
[1741826882475,0.1195258,83679.0,83669.0,0.35518727]
[1741826882678,0.1195258,83679.0,83673.0,0.00017925]
[1741826882976,0.1185258,83679.0,83674.0,0.40368202]
[1741826883177,0.1185258,83679.0,83674.0,0.28414982]
[1741826883488,0.1195329,83674.0,83673.0,0.00017925]
[1741826883987,0.1175329,83674.0,83673.0,0.00017925]
[1741826884586,0.0955329,83674.0,83673.0,0.00017925]
[1741826884892,0.0965329,83674.0,83673.0,0.00217925]
[1741826885485,0.1015329,83674.0,83673.0,0.00217925]
[1741826885779,0.1045329,83674.0,83673.0,0.00017925]
[1741826886375,0.1195558,83658.0,83657.0,0.0569]
[1741826886784,0.1195558,83658.0,83657.0,0.05707913]
[1741826887187,0.1195558,83658.0,83657.0,0.00017913]
[1741826888081,0.1195743,83645.0,83644.0,0.21418556]
[1741826888582,0.1195743,83645.0,83644.0,0.21436469]
[1741826889184,0.1826743,83645.0,83644.0,0.21418556]
[1741826889393,0.1836743,83645.0,83644.0,0.21418556]
[1741826890083,0.1835564,83645.0,83644.0,0.21418556]
[1741826890786,0.1195901,83634.0,83633.0,0.0616]
[1741826890980,0.0651,83645.0,83644.0,0.1195758]
[1741826891182,0.1846743,83645.0,83644.0,0.11975493]
[1741826891979,0.1836743,83645.0,83644.0,0.11975493]
[1741826892183,0.1826743,83645.0,83644.0,0.11975493]
[1741826892582,0.0641,83645.0,83580.0,0.14739612]
[1741826892790,0.1195858,83637.0,83636.0,0.00017913]
[1741826892989,0.1196001,83627.0,83600.0,0.51500657]
[1741826893185,0.1196101,83620.0,83612.0,0.1187]
[1741826893591,0.1196101,83620.0,83612.0,0.0584]
[1741826893982,0.2398101,83620.0,83612.0,0.0584]
[1741826894384,0.2398101,83620.0,83612.0,0.118]
[1741826894579,0.2398101,83620.0,83611.0,0.21418556]
[1741826894785,0.2408101,83620.0,83611.0,0.21418556]
[1741826894985,0.2408101,83620.0,83612.0,0.118]
[1741826895192,0.2418101,83620.0,83612.0,0.118]
[1741826895682,0.1196201,83613.0,83612.0,0.118]
[1741826896289,0.1196201,83613.0,83612.0,0.2376215]
[1741826896690,0.1196201,83613.0,83612.0,0.118]
[1741826897195,0.1206201,83613.0,83612.0,0.2376215]
[1741826897500,0.1186201,83613.0,83612.0,0.2376215]
[1741826897700,0.1196201,83613.0,83612.0,0.2376215]
[1741826897993,0.1196201,83613.0,83612.0,0.0584]
[1741826898694,0.2416201,83613.0,83612.0,0.0584]
[1741826899280,0.1196287,83607.0,83606.0,0.0623]
[1741826899485,0.1196287,83607.0,83606.0,0.19022]
[1741826900500,0.1206287,83607.0,83606.0,0.19022]
[1741826900683,0.1216287,83607.0,83606.0,0.19022]
[1741826900884,0.1216287,83607.0,83606.0,0.0623]
[1741826901094,0.1216287,83607.0,83606.0,0.1901]
[1741826901793,0.1216287,83607.0,83606.0,0.3097301]
[1741826901996,0.002,83607.0,83606.0,0.5497301]
[1741826902297,0.1216287,83607.0,83606.0,0.3097301]
[1741826902503,0.1216287,83607.0,83606.0,0.3710301]
[1741826902690,0.1216287,83607.0,83606.0,0.2514]
[1741826902888,0.002,83607.0,83606.0,0.1284]
[1741826903198,0.1216306,83607.0,83606.0,0.2480301]
[1741826903394,0.1216306,83607.0,83601.0,0.1211]
[1741826903395,0.002,83607.0,83601.0,0.1211]
[1741826903596,0.119633,83604.0,83603.0,0.0613]
[1741826904596,0.1196305,83606.0,83604.0,0.059816]
[1741826904786,0.1206296,83607.0,83606.0,0.1196301]
[1741826905404,0.1206296,83607.0,83606.0,0.1794301]
[1741826905590,0.1206296,83607.0,83606.0,0.2410301]
[1741826906587,0.1206296,83607.0,83606.0,0.1214]
[1741826906792,0.1206296,83607.0,83606.0,0.0616]
[1741826906998,0.1196301,83606.0,83605.0,0.1282]
[1741826907300,0.1196301,83606.0,83591.0,0.2163]
[1741826907301,0.059817,83604.0,83595.0,0.12832]
[1741826907514,0.1196373,83601.0,83595.0,0.12832]
[1741826907686,0.1196373,83601.0,83596.0,0.1246]
[1741826908803,0.1196373,83601.0,83600.0,0.2196387]
[1741826909498,0.001,83606.0,83605.0,0.1196316]
[1741826911091,0.1196268,83609.0,83608.0,0.2415244]
[1741826913689,0.1196268,83609.0,83608.0,0.1219]
[1741826914093,0.1196268,83609.0,83608.0,0.2415273]
[1741826915391,0.1196268,83609.0,83608.0,0.1219]
[1741826915704,0.1196268,83609.0,83608.0,0.2415273]
[1741826916508,0.00017936,83612.0,83611.0,0.119623]
[1741826916704,0.063,83623.0,83611.0,0.27]
[1741826916895,0.242415,83623.0,83622.0,0.1196072]
[1741826917096,0.242415,83623.0,83622.0,0.2477672]
[1741826917406,0.1228029,83623.0,83622.0,0.2477672]
[1741826917603,0.0586,83638.0,83622.0,0.2477672]
[1741826917604,0.1195937,83634.0,83633.0,0.1195901]
[1741826917802,0.1195937,83634.0,83633.0,0.2477901]
[1741826918101,0.1825937,83634.0,83633.0,0.2477901]
[1741826920314,0.1855937,83634.0,83633.0,0.1282]
[1741826920510,0.1875937,83634.0,83633.0,0.1282]
[1741826921017,0.1875937,83634.0,83633.0,0.2446]
[1741826921215,0.1875937,83634.0,83633.0,0.2359915]
[1741826921407,0.1875937,83634.0,83633.0,0.3641115]
[1741826921602,0.1855937,83634.0,83633.0,0.3641115]
[1741826921807,0.1885937,83634.0,83633.0,0.3641115]
[1741826922002,0.1265937,83634.0,83633.0,0.3641115]
[1741826922407,0.1235937,83634.0,83633.0,0.3641115]
[1741826922634,0.1255937,83634.0,83633.0,0.3641115]
[1741826922834,0.1255937,83634.0,83633.0,0.57829706]
[1741826923643,0.1245937,83634.0,83633.0,0.57829706]
[1741826926129,0.1245937,83634.0,83633.0,0.3641115]
[1741826928742,0.005,83634.0,83633.0,0.3641115]
[1741826928942,0.057,83650.0,83640.0,0.1195815]
[1741826929149,0.057,83650.0,83641.0,0.2983801]
[1741826929150,0.11975796,83642.0,83641.0,0.2983801]
[1741826930547,0.12975796,83642.0,83641.0,0.2983801]